fUST/lending_fUST_20250214
["ID","MTS","AMOUNT","RATE_DAILY","PERIOD"]
[353037726,1739506245994,-505.80515392,0.00013943,2]
[353037727,1739506246004,-504.2265221,0.00013943,2]
[353037728,1739506246013,-502.13170062,0.00013943,2]
[353037729,1739506246024,-500.0,0.00013943,2]
[353037730,1739506246033,-551.34293498,0.00013943,2]
[353037732,1739506246043,-500.0,0.00013943,2]
[353037733,1739506246053,-8856.51233439,0.00014008,2]
[353037734,1739506246062,-500.0,0.00014021,2]
[353037735,1739506246073,-500.0,0.00014021,2]
[353037736,1739506246083,-786.14,0.00014021,2]
[353037737,1739506246092,-500.0,0.00014021,2]
[353037739,1739506246102,-500.0,0.00014022,2]
[353037740,1739506246111,-500.0,0.00014022,2]
[353037741,1739506246120,-500.0,0.00014022,2]
[353037742,1739506246130,-500.0,0.00014022,2]
[353037743,1739506246140,-500.0,0.00014022,2]
[353037744,1739506246150,-500.0,0.00014022,2]
[353037745,1739506246161,-500.0,0.00014022,2]
[353037746,1739506246172,-500.0,0.00014022,2]
[353037747,1739506246182,-500.0,0.00014022,2]
[353037748,1739506246192,-500.0,0.00014022,2]
[353037749,1739506246202,-500.0,0.00014022,2]
[353037750,1739506246211,-242.62,0.00014022,2]
[353037751,1739506246223,-500.0,0.00014022,2]
[353037752,1739506246234,-500.0,0.00014022,2]
[353037753,1739506246244,-500.0,0.00014022,2]
[353037754,1739506246254,-500.0,0.00014022,2]
[353037755,1739506246264,-2015.39,0.00014022,2]
[353037756,1739506246274,-500.0,0.00014022,2]
[353037757,1739506246284,-3384.37,0.00014022,2]
[353037758,1739506246294,-500.0,0.00014022,2]
[353037759,1739506246304,-506.12175005,0.00014022,2]
[353037760,1739506246314,-500.0,0.00014022,2]
[353037761,1739506246324,-500.0,0.00014022,2]
[353037762,1739506246334,-969.31,0.00014022,2]
[353037763,1739506246343,-500.0,0.00014023,2]
[353037764,1739506246354,-500.0,0.00014023,2]
[353037765,1739506246364,-500.0,0.00014023,2]
[353037766,1739506246374,-500.0,0.00014023,2]
[353037767,1739506246384,-500.0,0.00014023,2]
[353037768,1739506246394,-500.0,0.00014023,2]
[353037769,1739506246404,-500.0,0.00014023,2]
[353037770,1739506246415,-500.0,0.00014023,2]
[353037771,1739506246425,-500.0,0.00014023,2]
[353037772,1739506246435,-500.0,0.00014023,2]
[353037773,1739506246445,-500.0,0.00014023,2]
[353037774,1739506246455,-385.49001494,0.00014023,2]
[353037775,1739506246465,-500.0,0.00014023,2]
[353037776,1739506246474,-500.0,0.00014023,2]
[353037777,1739506246484,-522.1428522,0.00014023,2]
[353037778,1739506246494,-500.0,0.00014023,2]
[353037779,1739506246504,-500.0,0.00014023,2]
[353037780,1739506246515,-501.71224327,0.00014023,2]
[353037781,1739506246525,-500.0,0.00014023,2]
[353037782,1739506246536,-500.0,0.00014023,2]
[353037783,1739506246546,-204.87314872,0.00014023,2]
[353037784,1739506246556,-502.3630271,0.00014023,2]
[353037785,1739506246566,-505.66060686,0.00014023,2]
[353037786,1739506246575,-506.29992307,0.00014023,2]
[353037787,1739506246585,-500.0,0.00014023,2]
[353037788,1739506246595,-500.0,0.00014023,2]
[353037789,1739506246605,-503.75613406,0.00014023,2]
[353037790,1739506246615,-503.21881989,0.00014023,2]
[353037791,1739506246625,-500.0,0.00014023,2]
[353037792,1739506246635,-502.79809466,0.00014023,2]
[353037793,1739506246645,-500.0,0.00014023,2]
[353037794,1739506246655,-500.0,0.00014023,2]
[353037795,1739506246664,-338.40715389,0.00014023,2]
[353037796,1739506246674,-151.0,0.00014023,2]
[353037797,1739506246683,-500.0,0.00014023,2]
[353037798,1739506246694,-502.36842424,0.00014023,2]
[353037799,1739506246704,-500.0,0.00014023,2]
[353037800,1739506246715,-167.946352,0.00014023,2]
[353037801,1739506246725,-500.0,0.00014023,2]
[353037802,1739506246735,-505.40502135,0.00014023,2]
[353037803,1739506246745,-167.946352,0.00014023,2]
[353037804,1739506246754,-500.0,0.00014023,2]
[353037805,1739506246767,-500.0,0.00014023,2]
[353037806,1739506246777,-151.0,0.00014023,2]
[353037807,1739506246787,-151.0,0.00014023,2]
[353037808,1739506246798,-151.0,0.00014023,2]
[353037809,1739506246809,-151.0,0.00014023,2]
[353037810,1739506246819,-151.0,0.00014023,2]
[353037811,1739506246828,-151.0,0.00014023,2]
[353037812,1739506246839,-151.0,0.00014023,2]
[353037813,1739506246850,-505.89212369,0.00014023,2]
[353037814,1739506246859,-151.0,0.00014023,2]
[353037815,1739506246869,-501.77365223,0.00014023,2]
[353037816,1739506246879,-505.26388,0.00014023,2]
[353037817,1739506246889,-500.0,0.00014023,2]
[353037818,1739506246900,-506.24839808,0.00014023,2]
[353037819,1739506246912,-500.0,0.00014024,2]
[353037820,1739506246926,-500.0,0.00014024,2]
[353037821,1739506246941,-504.60123991,0.00014024,2]
[353037822,1739506246956,-502.75874706,0.00014024,2]
[353037823,1739506246969,-500.0,0.00014024,2]
[353037824,1739506246982,-505.45476015,0.00014024,2]
[353037825,1739506246995,-543.39,0.00014024,2]
[353037826,1739506247009,-508.90055955,0.00014024,2]
[353037827,1739506247022,-503.67977773,0.00014024,2]
[353037828,1739506247035,-500.0,0.00014024,2]
[353037829,1739506247049,-503.40614959,0.00014024,2]
[353037830,1739506247063,-500.0,0.00014024,2]
[353037831,1739506247077,-500.0,0.00014024,2]
[353037832,1739506247091,-500.0,0.00014024,2]
[353037833,1739506247105,-500.0,0.00014024,2]
[353037834,1739506247118,-500.0,0.00014024,2]
[353037835,1739506247130,-504.87812531,0.00014025,2]
[353037836,1739506247142,-470.35151719,0.00014025,2]
[353037837,1739506247155,-500.0,0.00014025,2]
[353037838,1739506247168,-505.14591115,0.00014025,2]
[353037839,1739506247182,-500.0,0.00014025,2]
[353037840,1739506247195,-500.0,0.00014025,2]
[353037841,1739506247208,-500.0,0.00014025,2]
[353037842,1739506247219,-500.0,0.00014025,2]
[353037843,1739506247230,-274.33600676,0.00014025,2]
[353037844,1739506247243,-502.80877126,0.00014025,2]
[353037845,1739506247254,-500.0,0.00014025,2]
[353037846,1739506247267,-502.69379632,0.00014025,2]
[353037847,1739506247279,-167.96766142,0.00014025,2]
[353037848,1739506247293,-407.96857615,0.00014025,2]
[353037849,1739506247306,-502.47665569,0.00014025,2]
[353037850,1739506247320,-343.16982641,0.00014025,2]
[353037851,1739506247334,-500.0,0.00014025,2]
[353037852,1739506247349,-500.0,0.00014025,2]
[353037853,1739506247364,-500.0,0.00014025,2]
[353037854,1739506247377,-500.0,0.00014025,2]
[353037855,1739506247389,-151.0,0.00014025,2]
[353037856,1739506247400,-151.0,0.00014025,2]
[353037857,1739506247411,-151.0,0.00014025,2]
[353037858,1739506247423,-153.02942,0.00014025,2]
[353037859,1739506247436,-151.0,0.00014025,2]
[353037860,1739506247450,-151.84,0.00014025,2]
[353037861,1739506247463,-430.582686,0.00014025,2]
[353037862,1739506247474,-151.84,0.00014025,2]
[353037863,1739506247485,-151.0,0.00014025,2]
[353037864,1739506247496,-151.0,0.00014025,2]
[353037865,1739506247508,-1583.876967,0.00014025,2]
[353037866,1739506247520,-1583.876967,0.00014025,2]
[353037867,1739506247533,-151.0,0.00014025,2]
[353037868,1739506247544,-600.0,0.00014089,2]
[353037869,1739506247559,-500.0,0.00014103,2]
[353037870,1739506247570,-786.14,0.00014103,2]
[353037871,1739506247582,-500.0,0.00014103,2]
[353037872,1739506247595,-500.0,0.00014104,2]
[353037873,1739506247608,-500.0,0.00014104,2]
[353037874,1739506247620,-500.0,0.00014104,2]
[353037875,1739506247632,-500.0,0.00014104,2]
[353037876,1739506247645,-500.0,0.00014104,2]
[353037877,1739506247656,-500.0,0.00014104,2]
[353037878,1739506247670,-500.0,0.00014104,2]
[353037879,1739506247682,-500.0,0.00014104,2]
[353037880,1739506247695,-500.0,0.00014104,2]
[353037881,1739506247707,-533.47,0.00014104,2]
[353037882,1739506247720,-500.0,0.00014104,2]
[353037883,1739506247732,-500.0,0.00014104,2]
[353037884,1739506247744,-500.0,0.00014104,2]
[353037885,1739506247756,-551.65129277,0.00014104,2]
[353037886,1739506247778,-500.0,0.00014104,2]
[353037887,1739506247799,-2015.39,0.00014104,2]
[353037888,1739506247817,-500.0,0.00014104,2]
[353037889,1739506247832,-3384.37,0.00014104,2]
[353037890,1739506247849,-500.0,0.00014104,2]
[353037891,1739506247865,-500.0,0.00014104,2]
[353037892,1739506247881,-969.31,0.00014104,2]
[353037893,1739506247896,-500.0,0.00014105,2]
[353037894,1739506247912,-500.0,0.00014105,2]
[353037895,1739506247928,-500.0,0.00014105,2]
[353037896,1739506247943,-500.0,0.00014105,2]
[353037897,1739506247956,-363.8,0.00014105,2]
[353037898,1739506247969,-435.06,0.00014105,2]
[353037899,1739506247982,-500.0,0.00014105,2]
[353037900,1739506247994,-500.0,0.00014105,2]
[353037901,1739506248008,-500.0,0.00014105,2]
[353037902,1739506248021,-500.0,0.00014105,2]
[353037903,1739506248034,-500.0,0.00014105,2]
[353037904,1739506248047,-567.33944001,0.00014105,2]
[353037905,1739506248062,-178.15,0.00014105,2]
[353037906,1739506248076,-500.0,0.00014105,2]
[353037907,1739506248090,-192.33729865,0.00014105,2]
[353037908,1739506248104,-500.0,0.00014105,2]
[353037909,1739506248118,-635.76698777,0.00014105,2]
[353037910,1739506248131,-528.7,0.00014105,2]
[353037911,1739506248144,-500.0,0.00014105,2]
[353037912,1739506248159,-256.02895938,0.00014105,2]
[353037913,1739506248173,-500.0,0.00014105,2]
[353037914,1739506248186,-506.05617852,0.00014106,2]
[353037915,1739506248199,-500.0,0.00014106,2]
[353037916,1739506248212,-347.220618,0.00014107,2]
[353037917,1739506248224,-500.0,0.00014107,2]
[353037918,1739506248236,-174.71229447,0.00014107,2]
[353037919,1739506248249,-500.0,0.00014107,2]
[353037920,1739506248263,-504.3817157,0.00014107,2]
[353037921,1739506248277,-500.0,0.00014107,2]
[353037922,1739506248290,-500.0,0.00014107,2]
[353037923,1739506248304,-213.26041955,0.00014107,2]
[353037924,1739506248316,-500.0,0.00014107,2]
[353037925,1739506248329,-500.0,0.00014128,2]
[353037926,1739506248341,-500.0,0.00014128,2]
[353037927,1739506248353,-405.22150447,0.00014132,2]
[353037928,1739506248365,-993.95986216,0.00014147,2]
[353037929,1739506248379,-500.0,0.00014185,2]
[353037930,1739506248392,-786.14,0.00014185,2]
[353037931,1739506248405,-500.0,0.00014185,2]
[353037932,1739506248604,-500.0,0.00014186,2]
[353037933,1739506248615,-500.0,0.00014186,2]
[353037934,1739506248625,-500.0,0.00014186,2]
[353037935,1739506248636,-500.0,0.00014186,2]
[353037936,1739506248646,-500.0,0.00014186,2]
[353037937,1739506248657,-500.0,0.00014186,2]
[353037938,1739506248667,-500.0,0.00014186,2]
[353037939,1739506248678,-500.0,0.00014186,2]
[353037940,1739506248689,-500.0,0.00014186,2]
[353037941,1739506248699,-500.0,0.00014186,2]
[353037942,1739506248710,-500.0,0.00014186,2]
[353037943,1739506248720,-2015.39,0.00014186,2]
[353037944,1739506248731,-432.84,0.00014186,2]
[353037945,1739506248741,-3384.37,0.00014186,2]
[353037946,1739506248752,-500.0,0.00014186,2]
[353037947,1739506248764,-969.31,0.00014186,2]
[353037948,1739506248779,-500.0,0.00014187,2]
[353037949,1739506248789,-379.2,0.00014187,2]
[353037950,1739506248800,-528.16,0.00014187,2]
[353037951,1739506248812,-151.0,0.00014187,2]
[353037952,1739506248823,-202.838971,0.00014187,2]
[353037953,1739506248834,-202.838971,0.00014187,2]
[353037954,1739506248844,-500.0,0.00014187,2]
[353037955,1739506248857,-287.709,0.00014199,2]
[353037956,1739506248869,-151.0,0.000142,2]
[353037957,1739506248879,-151.0,0.000142,2]
[353037958,1739506248888,-469.85392161,0.00014223,2]
[353037959,1739506248898,-502.33920125,0.00014233,2]
[353037960,1739506248908,-504.90521883,0.00014233,2]
[353037961,1739506248919,-500.0,0.00014267,2]
[353037962,1739506248929,-786.14,0.00014267,2]
[353037963,1739506248939,-500.0,0.00014267,2]
[353037964,1739506248949,-500.0,0.00014268,2]
[353037965,1739506248959,-601.53238847,0.00014268,2]
[353037966,1739506248970,-551.33,0.00014268,2]
[353037967,1739506248980,-500.0,0.00014268,2]
[353037968,1739506248991,-500.0,0.00014268,2]
[353037969,1739506249001,-500.0,0.00014268,2]
[353037970,1739506249012,-500.0,0.00014268,2]
[353037971,1739506249023,-500.0,0.00014268,2]
[353037972,1739506249034,-500.0,0.00014268,2]
[353037973,1739506249045,-2015.39,0.00014268,2]
[353037974,1739506249056,-3384.37,0.00014268,2]
[353037975,1739506249066,-500.0,0.00014268,2]
[353037976,1739506249078,-969.31,0.00014268,2]
[353037977,1739506249089,-367.85682622,0.00014269,2]
[353037978,1739506249100,-396.0,0.00014275,2]
[353037979,1739506249111,-151.0,0.000143,2]
[353037980,1739506249122,-786.14,0.00014349,2]
[353037981,1739506249132,-500.0,0.00014349,2]
[353037982,1739506249144,-308.63,0.0001435,2]
[353037983,1739506249154,-597.01,0.0001435,2]
[353037984,1739506249165,-500.0,0.0001435,2]
[353037985,1739506249176,-500.0,0.0001435,2]
[353037986,1739506249187,-500.0,0.0001435,2]
[353037987,1739506249197,-2015.39,0.0001435,2]
[353037988,1739506249207,-3384.37,0.0001435,2]
[353037989,1739506249218,-500.0,0.0001435,2]
[353037990,1739506249228,-969.31,0.0001435,2]
[353037991,1739506249238,-167.4762916,0.00014354,2]
[353037992,1739506249248,-3000.0,0.000144,30]
[353037993,1739506249258,-151.0,0.000144,2]
[353037994,1739506249269,-151.0,0.000144,2]
[353037995,1739506249279,-151.0,0.000144,2]
[353037996,1739506249290,-151.0,0.000144,2]
[353037997,1739506249300,-190.714495,0.000144,2]
[353037998,1739506249311,-151.0,0.000144,2]
[353037999,1739506249321,-358.180795,0.000144,2]
[353038000,1739506249331,-358.180795,0.000144,2]
[353038001,1739506249340,-151.0,0.000144,2]
[353038002,1739506249351,-151.0,0.000144,2]
[353038003,1739506249361,-1583.876967,0.000144,2]
[353038004,1739506249372,-1583.876967,0.000144,2]
[353038005,1739506249383,-151.0,0.000144,2]
[353038006,1739506249393,-159.88487871,0.000144,2]
[353038007,1739506249403,-159.88487871,0.000144,2]
[353038008,1739506249413,-159.88487871,0.000144,2]
[353038009,1739506249424,-159.88487871,0.000144,2]
[353038010,1739506249433,-3728.20198509,0.000144,2]
[353038011,1739506249444,-159.88487871,0.000144,2]
[353038012,1739506249454,-159.88487871,0.000144,2]
[353038013,1739506249463,-159.88487871,0.000144,2]
[353038014,1739506249472,-159.88,0.000144,2]
[353038015,1739506249482,-157.07988083,0.000144,2]
[353038016,1739506249492,-157.07988083,0.000144,2]
[353038017,1739506249502,-157.07988083,0.000144,2]
[353038018,1739506249512,-157.07988083,0.000144,2]
[353038019,1739506249522,-157.07988083,0.000144,2]
[353038020,1739506249531,-157.07988083,0.000144,2]
[353038021,1739506249541,-157.07988083,0.000144,2]
[353038022,1739506249551,-157.07988083,0.000144,2]
[353038023,1739506249561,-157.07988083,0.000144,2]
[353038024,1739506249571,-157.07988083,0.000144,2]
[353038025,1739506249581,-157.07988083,0.000144,2]
[353038026,1739506249591,-157.07988083,0.000144,2]
[353038027,1739506249601,-157.07988083,0.000144,2]
[353038028,1739506249611,-157.07988083,0.000144,2]
[353038029,1739506249620,-157.07988083,0.000144,2]
[353038030,1739506249630,-157.07988083,0.000144,2]
[353038031,1739506249640,-157.07988083,0.000144,2]
[353038032,1739506249650,-157.07988083,0.000144,2]
[353038033,1739506249660,-157.07,0.000144,2]
[353038034,1739506249670,-151.0,0.000144,2]
[353038035,1739506249681,-151.0,0.000144,2]
[353038036,1739506249691,-151.0,0.000144,2]
[353038037,1739506249700,-3000.0,0.0001441,30]
[353038038,1739506249710,-154.899148,0.0001441,2]
[353038039,1739506249721,-151.84,0.0001441,2]
[353038040,1739506249730,-430.582686,0.0001441,2]
[353038041,1739506249740,-151.84,0.0001441,2]
[353038042,1739506249750,-151.0,0.0001441,2]
[353038043,1739506249760,-167.946352,0.0001441,2]
[353038044,1739506249774,-167.946352,0.0001441,2]
[353038045,1739506249783,-151.0,0.0001441,2]
[353038046,1739506249792,-151.0,0.0001441,2]
[353038047,1739506249803,-151.0,0.0001441,2]
[353038048,1739506249812,-151.0,0.0001441,2]
[353038049,1739506249822,-151.0,0.0001441,2]
[353038050,1739506249831,-3000.0,0.0001442,30]
[353038051,1739506249842,-1000.0,0.00014421,2]
[353038052,1739506249851,-1000.0,0.00014421,2]
[353038053,1739506249860,-1000.0,0.00014421,2]
[353038054,1739506249870,-1138.05531406,0.00014421,2]
[353038055,1739506249879,-3000.0,0.0001443,30]
[353038056,1739506249889,-151.0,0.0001443,2]
[353038057,1739506249899,-151.0,0.0001443,2]
[353038058,1739506249908,-151.0,0.0001443,2]
[353038059,1739506249917,-786.14,0.00014432,2]
[353038060,1739506249927,-500.0,0.00014432,2]
[353038061,1739506249937,-201.42215426,0.00014433,2]
[353038062,1739506249947,-500.0,0.00014433,2]
[353038063,1739506249957,-519.63,0.00014433,2]
[353038064,1739506249967,-2015.39,0.00014433,2]
[353038065,1739506249976,-1199.12593797,0.00014433,2]
[353038066,1739506250075,-2185.24406203,0.00014433,2]
[353038067,1739506250085,-500.0,0.00014433,2]
[353038068,1739506250095,-969.31,0.00014433,2]
[353038069,1739506250104,-3000.0,0.0001444,30]
[353038070,1739506250113,-3000.0,0.0001445,30]
[353038071,1739506250123,-158.968205,0.0001445,5]
[353038072,1739506250132,-3000.0,0.0001446,30]
[353038073,1739506250141,-151.0,0.0001446,2]
[353038074,1739506250151,-1263.00210342,0.0001447,30]
[353038075,1739506250163,-1736.99789658,0.0001447,30]
[353038076,1739506250172,-158.968205,0.00014475,5]
[353038077,1739506250182,-3000.0,0.0001448,30]
[353038078,1739506250191,-4432.917954,0.0001449,30]
[353038079,1739506250201,-160.0,0.00014499,2]
[353038080,1739506250211,-226.182621,0.00014499,2]
[353038081,1739506250220,-202.838971,0.00014499,2]
[353038082,1739506250229,-202.838971,0.00014499,2]
[353038083,1739506250239,-30864.32753898,0.000145,5]
[353038084,1739506250248,-684.68470629,0.000145,5]
[353038085,1739506250257,-12512.03757292,0.000145,5]
[353038086,1739506250270,-416.91582437,0.000145,5]
[353038087,1739506250282,-23151.2964399,0.000145,5]
[353038088,1739506250294,-10728.22682405,0.000145,5]
[353038089,1739506250367,-500.0,0.00013856,2]
[353038090,1739506250378,-500.0,0.00013938,2]
[353038091,1739506250388,-500.0,0.00014021,2]
[353038092,1739506250398,-500.0,0.00014022,2]
[353038093,1739506250407,-119.97925681,0.00014103,2]
[353038094,1739506250419,-315.58969745,0.00014103,2]
[353038095,1739506250430,-500.0,0.00014104,2]
[353038096,1739506250439,-626.8,0.00014186,2]
[353038097,1739506250449,-16950.89244993,0.000145,5]
[353038098,1739506250544,-741.32642241,0.00013856,2]
[353038099,1739506250557,-793.41615619,0.00013856,2]
[353038100,1739506250567,-564.715912,0.00014023,2]
[353038101,1739506250576,-564.715912,0.000144,2]
[353038102,1739506250585,-32975.32639237,0.000145,5]
[353038103,1739506250597,-52131.69547551,0.000145,5]
[353038104,1739506250608,-1000.9,0.000145,5]
[353038105,1739506250623,-791.2784889,0.000145,5]
[353038106,1739506250701,-564.715912,0.00014023,2]
[353038107,1739506250711,-564.715912,0.000144,2]
[353038108,1739506250720,-48673.27957282,0.000145,5]
[353038109,1739506250732,-7172.22631319,0.000145,5]
[353038110,1739506250747,-948.37496195,0.000145,5]
[353038111,1739506250759,-11817.68680416,0.000145,5]
[353038157,1739507432481,-251.750129,0.00010685,2]
[353038158,1739507432492,-300.0,0.00013689,2]
[353038159,1739507432502,-710.78846872,0.0001369,2]
[353038163,1739507438171,-5816.492546,0.0001369,2]
[353038164,1739507438185,-3472.71898528,0.0001369,2]
[353038165,1739507438195,-188.933492,0.00013699,2]
[353038166,1739507438204,-258.7782146,0.00013699,2]
[353038167,1739507438214,-287.05305906,0.00013754,2]
[353038168,1739507438224,-502.98447721,0.00013853,2]
[353038169,1739507438233,-500.0,0.00013854,2]
[353038170,1739507438243,-500.0,0.00013854,2]
[353038171,1739507438252,-500.0,0.00013854,2]
[353038172,1739507438261,-500.0,0.00013854,2]
[353038173,1739507438272,-500.0,0.00013854,2]
[353038174,1739507438283,-500.0,0.00013854,2]
[353038175,1739507438292,-500.0,0.00013854,2]
[353038176,1739507438303,-523.36,0.00013854,2]
[353038177,1739507438312,-500.0,0.00013854,2]
[353038178,1739507438324,-500.0,0.00013854,2]
[353038179,1739507438334,-500.0,0.00013854,2]
[353038180,1739507438344,-500.0,0.00013854,2]
[353038181,1739507438355,-500.0,0.00013854,2]
[353038182,1739507438365,-500.0,0.00013854,2]
[353038183,1739507438374,-500.0,0.00013854,2]
[353038184,1739507438384,-500.0,0.00013854,2]
[353038185,1739507438393,-500.0,0.00013854,2]
[353038186,1739507438403,-500.0,0.00013854,2]
[353038187,1739507438412,-500.0,0.00013854,2]
[353038188,1739507438421,-500.0,0.00013854,2]
[353038189,1739507438432,-539.6,0.00013854,2]
[353038190,1739507438441,-500.0,0.00013854,2]
[353038191,1739507438451,-500.0,0.00013854,2]
[353038192,1739507438461,-500.0,0.00013854,2]
[353038193,1739507438470,-500.0,0.00013854,2]
[353038194,1739507438479,-155.8,0.00013854,2]
[353038195,1739507438489,-500.0,0.00013854,2]
[353038196,1739507438498,-1668.22,0.00013854,2]
[353038197,1739507438507,-2384.23,0.00013854,2]
[353038198,1739507438517,-500.0,0.00013854,2]
[353038199,1739507438526,-500.0,0.00013854,2]
[353038200,1739507438535,-426.00199017,0.00013854,2]
[353038201,1739507438545,-500.0,0.00013854,2]
[353038202,1739507438554,-2624.17,0.00013854,2]
[353038203,1739507438563,-500.0,0.00013854,2]
[353038204,1739507438573,-500.0,0.00013855,2]
[353038205,1739507438583,-482.71355415,0.00013855,2]
[353038206,1739507438596,-17.28644585,0.00013855,2]
[353038207,1739507438608,-500.0,0.00013855,2]
[353038208,1739507438621,-500.0,0.00013855,2]
[353038209,1739507438631,-500.0,0.00013855,2]
[353038210,1739507438641,-500.0,0.00013855,2]
[353038211,1739507438653,-500.0,0.00013855,2]
[353038212,1739507438662,-500.0,0.00013855,2]
[353038213,1739507438671,-500.0,0.00013855,2]
[353038214,1739507438681,-500.0,0.00013855,2]
[353038215,1739507438690,-500.0,0.00013855,2]
[353038216,1739507438699,-500.0,0.00013855,2]
[353038217,1739507438709,-500.0,0.00013855,2]
[353038218,1739507438718,-500.0,0.00013855,2]
[353038219,1739507438728,-500.0,0.00013855,2]
[353038220,1739507438737,-503.59590257,0.00013855,2]
[353038221,1739507438746,-500.0,0.00013855,2]
[353038222,1739507438755,-500.0,0.00013855,2]
[353038223,1739507438764,-454.21480007,0.00013855,2]
[353038224,1739507438780,-45.78519993,0.00013855,2]
[353038225,1739507438789,-500.0,0.00013855,2]
[353038226,1739507438799,-500.0,0.00013855,2]
[353038227,1739507438809,-500.0,0.00013855,2]
[353038228,1739507438820,-500.0,0.00013855,2]
[353038229,1739507438829,-251.61151342,0.00013855,2]
[353038230,1739507438838,-648.21681595,0.00013855,2]
[353038231,1739507438847,-167.37122544,0.00013855,2]
[353038232,1739507438859,-336.43417679,0.00013855,2]
[353038233,1739507438868,-500.0,0.00013855,2]
[353038234,1739507438878,-402.31047928,0.00013855,2]
[353038235,1739507438890,-32.42514879,0.00013855,2]
[353038236,1739507438899,-646.21,0.00013855,2]
[353038237,1739507438909,-500.0,0.00013855,2]
[353038238,1739507438918,-500.0,0.00013855,2]
[353038239,1739507438930,-500.0,0.00013856,2]
[353038240,1739507438941,-500.0,0.00013856,2]
[353038241,1739507438951,-500.0,0.00013856,2]
[353038242,1739507438962,-500.0,0.00013856,2]
[353038243,1739507438971,-520.00748832,0.00013856,2]
[353038244,1739507438981,-500.0,0.00013856,2]
[353038245,1739507439003,-500.0,0.00013856,2]
[353038246,1739507439016,-209.72721143,0.00013856,2]
[353038247,1739507439029,-500.0,0.00013856,2]
[353038248,1739507439039,-500.0,0.00013936,2]
[353038249,1739507439052,-156.73,0.00013936,2]
[353038250,1739507439061,-201.42215426,0.00013936,2]
[353038251,1739507439071,-500.0,0.00013936,2]
[353038252,1739507439079,-500.0,0.00013936,2]
[353038253,1739507439089,-1668.22,0.00013936,2]
[353038254,1739507439098,-2384.23,0.00013936,2]
[353038256,1739507439110,-356.72,0.00013936,2]
[353038257,1739507439119,-500.0,0.00013936,2]
[353038258,1739507439128,-2624.17,0.00013936,2]
[353038259,1739507439138,-334.65812613,0.00013937,2]
[353038260,1739507439150,-165.34187387,0.00013937,2]
[353038261,1739507439159,-500.0,0.00013937,2]
[353038262,1739507439169,-646.21,0.00013937,2]
[353038263,1739507439179,-563.0,0.00013973,2]
[353038264,1739507439188,-563.0,0.00014,2]
[353038265,1739507439197,-500.0,0.00014019,2]
[353038266,1739507439206,-500.0,0.00014019,2]
[353038267,1739507439216,-509.96,0.00014019,2]
[353038268,1739507439226,-911.29645678,0.00014019,2]
[353038269,1739507439237,-756.92354322,0.00014019,2]
[353038270,1739507439246,-2384.23,0.00014019,2]
[353038271,1739507439256,-500.0,0.00014019,2]
[353038272,1739507439265,-2624.17,0.00014019,2]
[353038273,1739507439275,-646.21,0.0001402,2]
[353038274,1739507439288,-500.0,0.00014089,2]
[353038275,1739507439297,-179.29674357,0.00014101,2]
[353038276,1739507439306,-500.0,0.00014101,2]